fUSD/lending_fUSD_20260108
["ID","MTS","AMOUNT","RATE_DAILY","PERIOD"]
[401086105,1767912901982,-150.0,0.00011119,2]
[401086106,1767912902005,-1200.0,0.00011119,2]
[401086107,1767912902029,-300.0,0.00011119,2]
[401086108,1767912902053,-248.0,0.00011119,2]
[401086109,1767912902084,-500.0,0.0001112,2]
[401086110,1767912902110,-500.0,0.0001112,2]
[401086111,1767912902136,-296.00749336,0.0001112,2]
[401086112,1767912902165,-500.0,0.0001112,2]
[401086113,1767912902192,-500.0,0.0001112,2]
[401086114,1767912902221,-500.0,0.0001112,2]
[401086115,1767912902248,-500.0,0.0001112,2]
[401086116,1767912902276,-500.0,0.0001112,2]
[401086117,1767912902303,-500.0,0.0001112,2]
[401086118,1767912902334,-500.0,0.0001112,2]
[401086119,1767912902363,-221.69088349,0.0001112,2]
[401086120,1767912902387,-554.83401699,0.0001112,2]
[401086121,1767912902414,-500.0,0.0001112,2]
[401086122,1767912902442,-188.92278344,0.0001112,2]
[401086123,1767912902469,-287.03578376,0.0001112,2]
[401086124,1767912902492,-165.99200251,0.0001112,2]
[401086125,1767912902516,-500.0,0.0001112,2]
[401086126,1767912902540,-500.0,0.0001112,2]
[401086127,1767912902564,-500.0,0.0001112,2]
[401086128,1767912902592,-500.0,0.0001112,2]
[401086129,1767912902620,-383.73881334,0.0001112,2]
[401086130,1767912902648,-500.0,0.0001112,2]
[401086131,1767912902676,-500.0,0.0001112,2]
[401086132,1767912903047,-500.0,0.0001112,2]
[401086133,1767912903079,-500.0,0.0001112,2]
[401086134,1767912903109,-500.0,0.0001112,2]
[401086135,1767912903138,-500.0,0.0001112,2]
[401086136,1767912903163,-300.0,0.0001112,2]
[401086137,1767912903186,-195.0,0.00011121,2]
[401086138,1767912903214,-815063.58710985,0.00011121,2]
[401086139,1767912903238,-195.0,0.00011167,2]
[401086140,1767912903262,-1440.8606,0.00011292,2]
[401086141,1767912903285,-5546.62,0.00011292,2]
[401086152,1767913003072,-300.0,0.0001102,2]
[401086153,1767913003097,-388.3838119,0.0001102,2]
[401086154,1767913003125,-155.18361845,0.0001102,2]
[401086155,1767913003150,-500.0,0.0001102,2]
[401086156,1767913003174,-516.19440176,0.0001102,2]
[401086157,1767913003197,-500.0,0.0001102,2]
[401086158,1767913003223,-200.92504863,0.0001102,2]
[401086159,1767913003251,-500.0,0.0001102,2]
[401086160,1767913003281,-464.4162563,0.0001102,2]
[401086161,1767913003304,-250.0,0.00011021,2]
[401086162,1767913003333,-996224.89686296,0.00011021,2]
[401086163,1767913007093,-3775.10313704,0.00011021,2]
[401086193,1767913710039,578.32,5.543e-05,2]
[401086194,1767913710480,578.32,5.823e-05,2]
[401086195,1767913710887,578.32,6.103e-05,2]
[401086196,1767913711146,578.32,6.384e-05,2]
[401086197,1767913711702,578.32,6.664e-05,2]
[401086198,1767913711854,578.32,6.944e-05,2]
[401086199,1767913712005,578.32,7.224e-05,2]
[401086200,1767913712116,578.32,7.505e-05,2]
[401086201,1767913713800,578.32,7.785e-05,2]
[401086202,1767913714648,578.32,8.065e-05,2]
[401086203,1767913714953,578.32,8.345e-05,2]
[401086204,1767913715143,578.32,8.626e-05,2]
[401086205,1767913715472,578.32,8.906e-05,2]
[401086206,1767913715691,578.32,9.186e-05,2]
[401086207,1767913715874,578.32,9.467e-05,2]
[401086208,1767913716052,269.03291142,9.747e-05,2]
[401086209,1767913716077,309.28708858,9.747e-05,2]
[401086210,1767913716206,578.32,0.00010027,2]
[401086211,1767913716273,437.60291142,0.00010307,2]
[401086212,1767913716295,140.71708858,0.00010307,2]
[401086213,1767913718705,-269.57225798,0.00010588,2]
[401086214,1767913720919,-180.49618711,0.00010588,2]
[401086215,1767913724467,-128.25155491,0.00010588,2]
[401086216,1767913724489,-49.76967347,0.00010658,2]
[401086217,1767913726103,-160.3090297,0.00010658,2]
[401086218,1767913727610,-174.49736747,0.00010658,2]
[401086219,1767913734578,-200.0,0.00010658,2]
[401086220,1767913736842,-200.0,0.00010658,2]
[401086221,1767913743405,-166.66,0.00010657,2]
[401086222,1767913745016,-133.34,0.00010657,2]
[401086223,1767913745038,-102.80272488,0.00010658,2]
[401086224,1767913749340,-430.8238955,0.00010658,2]
[401086225,1767913751428,-442.21273673,0.00010658,2]
[401086226,1767913758134,-164.52958142,0.00010658,2]
[401086227,1767913759590,-222.18749106,0.00010658,2]
[401086228,1767913762150,-377.97918294,0.00010658,2]
[401086229,1767913765249,-420.67651575,0.00010658,2]
[401086230,1767913769175,-357.08028761,0.00010658,2]
[401086231,1767913773224,-303.21339626,0.00010658,2]
[401086232,1767913774808,-316.66,0.00010658,2]
[401086233,1767913776071,-206.13,0.00010658,2]
[401086234,1767913781293,-216.04641813,0.00010658,2]
[401086235,1767913789932,-223.2423328,0.00010658,2]
[401086236,1767913792164,-232.67783146,0.00010658,2]
[401086237,1767913794043,999.0,0.00010959,3]
[401086238,1767913798472,-197.662822,0.00010658,2]
[401086239,1767913800557,-210.59051887,0.00010658,2]
[401086242,1767913831771,-320.124,0.00010603,2]
[401086243,1767913831783,-1079.006102,0.00010603,2]
[401086244,1767913831794,-1200.0,0.00010657,2]
[401086245,1767913831803,-237.0,0.00010657,2]
[401086246,1767913831813,-250.0,0.00010658,2]
[401086247,1767913831822,-5039.34650129,0.00010658,2]
[401086248,1767913831833,-1014.02545008,0.00010658,2]
[401086249,1767913831910,-3631.16624258,0.00010658,2]
[401086250,1767913831919,-578.32,0.00010868,2]
[401086251,1767913831928,-150.0,0.0001092,2]
[401086252,1767913831938,-1000.0,0.00010921,2]
[401086253,1767913831948,-169.6187,0.00010921,2]
[401086254,1767913831958,-500.0,0.00010921,2]
[401086255,1767913831967,-500.0,0.00010921,2]
[401086257,1767913831976,-202.1441661,0.00010921,2]
[401086259,1767913831986,-560.73380291,0.00010921,2]
[401086261,1767913831996,-6275.53592362,0.00010921,2]
[401086265,1767913832018,-335.26580545,0.00010921,2]
[401086267,1767913832029,-999.67682255,0.00010921,2]
[401086269,1767913832040,-254.480222,0.00010921,2]
[401086271,1767913832051,-1130.38572347,0.00010921,2]
[401086273,1767913832060,-1095.51427653,0.00010921,2]
[401086275,1767913832071,-1404.48572347,0.00010921,2]
[401086276,1767913832080,-158.69212057,0.00010939,2]
[401086277,1767913832089,-498.99148565,0.00011005,2]
[401086279,1767913832097,-500.0,0.00011005,2]
[401086281,1767913832106,-500.0,0.00011005,2]
[401086283,1767913832115,-500.0,0.00011005,2]
[401086285,1767913832124,-500.0,0.00011005,2]
[401086287,1767913832134,-500.0,0.00011005,2]
[401086290,1767913832143,-500.0,0.00011005,2]
[401086292,1767913832151,-336.50919448,0.00011005,2]
[401086298,1767913832215,-192.44099907,0.00011005,2]
[401086299,1767913832224,-307.55900093,0.00011005,2]
[401086301,1767913838083,-500.0,0.00011004,2]
[401086302,1767913838093,-624.61798538,0.00011004,2]
[401086303,1767913838103,-454.12269892,0.00011004,2]
[401086304,1767913838113,-3256.07383369,0.00011007,2]
[401086306,1767913838125,-722.46490153,0.00011007,2]
[401086308,1767913838175,-999.0,0.00011007,2]
[401086311,1767913838187,-1650.0,0.00011007,2]
[401086496,1767913840077,-21507.88870991,0.00011007,2]
[401086498,1767913840086,-254.480222,0.00011014,2]
[401086500,1767913840096,-200.0,0.00011014,2]
[401086502,1767913840110,-151.0,0.00011014,2]
[401086504,1767913840131,-151.0,0.00011014,2]
[401086506,1767913840153,-151.0,0.00011014,2]
[401086508,1767913840168,-151.0,0.00011014,2]
[401086510,1767913840177,-500.0,0.00011014,2]
[401086512,1767913840186,-151.0,0.00011014,2]
[401086514,1767913840195,-151.0,0.00011014,2]
[401086516,1767913840204,-151.0,0.00011014,2]
[401086518,1767913840213,-151.0,0.00011014,2]
[401086520,1767913840223,-151.0,0.00011014,2]
[401086522,1767913840231,-151.0,0.00011014,2]
[401086524,1767913840240,-151.0,0.00011014,2]
[401086526,1767913840249,-289.11476837,0.00011014,2]
[401086528,1767913840259,-500.0,0.00011016,2]
[401086530,1767913840268,-353.48,0.00011017,2]
[401086532,1767913840277,-151.0,0.00011018,2]
[401086534,1767913840286,-3180.75325131,0.0001102,2]
[401086536,1767913840295,-1015.15258093,0.0001102,2]
[401086538,1767913840304,-1000000.0,0.00011021,2]
[401086540,1767913840313,-29097.4613506,0.00011067,2]
[401086542,1767913840322,-6676.8052547,0.00011067,2]
[401086544,1767913840331,-8810.07679516,0.00011099,2]
[401086546,1767913840340,-9301.34223179,0.00011099,2]
[401086548,1767913840349,-1336.36,0.00011281,2]
[401086550,1767913840358,-2502.08,0.00011281,2]
[401086552,1767913840367,-353.48,0.00011291,2]
[401086554,1767913840376,-151.0,0.00011292,2]
[401086557,1767913840386,-217.15819343,0.00011292,2]
[401086559,1767913840396,-1000.0,0.00011348,2]
[401086561,1767913840405,-500.0,0.00011366,2]
[401086563,1767913840415,-150.0,0.00011386,2]
[401086565,1767913840424,-353.48,0.00011565,2]
[401086567,1767913840434,-250.0,0.00011723,2]
[401086569,1767913840443,-1680.0,0.00011723,2]
[401086571,1767913840452,-250.0,0.00011724,2]
[401086573,1767913840461,-9301.34223172,0.00011737,2]
[401086575,1767913840470,-8810.0767951,0.00011737,2]
[401086577,1767913840479,-353.48,0.00011839,2]
[401086579,1767913840488,-255.0,0.00011958,2]
[401086581,1767913840498,-353.52,0.00012113,2]
[401086583,1767913840507,-6676.8052547,0.00012286,2]
[401086585,1767913840515,-166.66,0.00012329,2]
[401086587,1767913840524,-29097.4613506,0.00012407,2]
[401086589,1767913840533,-166.66,0.00012452,2]
[401086591,1767913840547,-9301.34223172,0.00012508,2]
[401086593,1767913840556,-8810.0767951,0.00012508,2]
[401086595,1767913840566,-166.66,0.00012575,2]
[401086597,1767913840575,-166.66,0.00012699,2]
[401086599,1767913840586,-1000.0,0.00012767,2]
[401086601,1767913840595,-166.66,0.00012822,2]
[401086603,1767913840604,-299.99,0.00012893,2]
[401086605,1767913840614,-5907.01,0.00012893,2]
[401086607,1767913840624,-999.99,0.00012893,2]
[401086609,1767913840634,-20121.92,0.00012893,2]
[401086611,1767913840643,-150.99,0.00012893,2]
[401086613,1767913840652,-39999.98,0.00012893,2]
[401086615,1767913840661,-150.99,0.00012893,2]
[401086617,1767913840671,-9999.99,0.00012893,2]
[401086619,1767913840681,-2351.0,0.00012896,2]
[401086621,1767913840691,-189.74890307,0.00012919,2]
[401086623,1767913840700,-166.66,0.00012945,2]
[401086625,1767913840709,-8728.35,0.00012969,2]
[401086627,1767913840718,-433.0,0.00013093,2]
[401086629,1767913840727,-158.69212054,0.00013259,2]
[401086631,1767913840736,-9301.34223172,0.00013278,2]
[401086633,1767913840745,-8810.0767951,0.00013278,2]
[401086635,1767913840754,-6676.8052547,0.00013504,2]
[401086637,1767913840763,-260.55,0.00013521,2]
[401086639,1767913840772,-500.0,0.00013698,2]
[401086641,1767913840781,-500.0,0.00013698,2]
[401086643,1767913840791,-500.0,0.00013698,2]
[401086645,1767913840800,-500.0,0.00013698,2]
[401086647,1767913840809,-500.0,0.00013698,2]
[401086649,1767913840818,-500.0,0.00013698,2]
[401086651,1767913840827,-515.32073646,0.00013698,2]
[401086653,1767913840836,-500.0,0.00013698,2]
[401086655,1767913840845,-500.0,0.00013698,2]
[401086657,1767913840854,-500.0,0.00013698,2]
[401086659,1767913840864,-517.79961316,0.00013698,2]
[401086661,1767913840873,-500.0,0.00013698,2]
[401086663,1767913840882,-500.0,0.00013698,2]
[401086665,1767913840891,-500.0,0.00013698,2]
[401086667,1767913840901,-500.0,0.00013698,2]
[401086669,1767913840911,-500.0,0.00013698,2]
[401086671,1767913840920,-500.0,0.00013698,2]
[401086673,1767913840930,-500.0,0.00013698,2]
[401086675,1767913840939,-500.0,0.00013698,2]
[401086677,1767913840948,-500.0,0.00013698,2]
[401086679,1767913840958,-500.0,0.00013698,2]
[401086681,1767913840968,-200.0,0.00013729,2]
[401086683,1767913840977,-29097.4613506,0.00013747,2]
[401086685,1767913840987,-38384.4,0.00013902,2]
[401086687,1767913840996,-150.0,0.00013974,2]
[401086689,1767913841005,-9301.34223172,0.00014048,2]
[401086691,1767913841014,-8810.0767951,0.00014048,2]
[401086694,1767913841023,-161.41,0.00014058,2]
[401086695,1767913841032,-226.98,0.00014058,2]
[401086697,1767913841041,-250.0,0.00014083,2]
[401086699,1767913841051,-1095.68,0.00014136,2]
[401086701,1767913841060,-659.3,0.00014136,2]
[401086703,1767913841068,-3292.0,0.00014185,2]
[401086705,1767913841077,-1000.0,0.00014185,2]
[401086707,1767913841086,-736.0,0.00014338,2]
[401086709,1767913841095,-151.0,0.00014493,2]
[401086711,1767913841104,-151.0,0.00014493,2]
[401086713,1767913841113,-151.0,0.00014493,2]
[401086715,1767913841122,-151.0,0.00014493,2]
[401086717,1767913841131,-151.0,0.00014493,2]
[401086719,1767913841140,-151.0,0.00014493,2]
[401086721,1767913841149,-151.0,0.00014493,2]
[401086723,1767913841158,-151.0,0.00014493,2]
[401086725,1767913841167,-151.0,0.00014493,2]
[401086727,1767913841176,-151.0,0.00014493,2]
[401086729,1767913841185,-151.0,0.00014493,2]
[401086731,1767913841194,-151.0,0.00014493,2]
[401086733,1767913841203,-151.0,0.00014493,2]
[401086735,1767913841211,-151.0,0.00014493,2]
[401086737,1767913841220,-151.0,0.00014493,2]
[401086739,1767913841229,-151.0,0.00014493,2]
[401086741,1767913841238,-152.0,0.00014493,2]
[401086743,1767913841247,-151.0,0.00014493,2]
[401086745,1767913841256,-151.0,0.00014493,2]
[401086747,1767913841264,-302.0,0.00014493,2]
[401086749,1767913841273,-152.0,0.00014493,2]
[401086751,1767913841282,-151.0,0.00014493,2]
[401086753,1767913841291,-151.0,0.00014493,2]
[401086755,1767913841300,-152.0,0.00014493,2]
[401086757,1767913841309,-151.0,0.00014493,2]
[401086759,1767913841318,-152.0,0.00014493,2]
[401086761,1767913841327,-151.0,0.00014493,2]
[401086764,1767913841338,-152.0,0.00014493,2]
[401086765,1767913841347,-152.0,0.00014493,2]
[401086767,1767913841356,-152.0,0.00014493,2]
[401086769,1767913841365,-152.0,0.00014493,2]
[401086771,1767913841374,-253.06619944,0.00014493,2]
[401086773,1767913841383,-151.0,0.00014493,2]
[401086775,1767913841392,-151.0,0.00014493,2]
[401086777,1767913841401,-151.0,0.00014493,2]
[401086779,1767913841411,-151.0,0.00014493,2]
[401086782,1767913841421,-151.0,0.00014493,2]
[401086784,1767913841431,-151.0,0.00014493,2]
[401086785,1767913841440,-151.0,0.00014493,2]
[401086788,1767913841452,-151.0,0.00014493,2]
[401086789,1767913841461,-151.0,0.00014493,2]
[401086792,1767913841470,-151.0,0.00014493,2]
[401086794,1767913841479,-151.0,0.00014493,2]
[401086796,1767913841488,-151.0,0.00014493,2]
[401086798,1767913841497,-151.0,0.00014493,2]
[401086799,1767913841506,-151.0,0.00014493,2]
[401086802,1767913841515,-151.0,0.00014493,2]
[401086803,1767913841524,-151.0,0.00014493,2]
[401086805,1767913841534,-151.0,0.00014493,2]
[401086808,1767913841546,-151.0,0.00014493,2]
[401086810,1767913841555,-151.0,0.00014493,2]
[401086812,1767913841564,-151.0,0.00014493,2]
[401086814,1767913841574,-151.0,0.00014493,2]
[401086816,1767913841584,-151.0,0.00014493,2]
[401086818,1767913841594,-151.0,0.00014493,2]
[401086819,1767913841604,-151.0,0.00014493,2]
[401086822,1767913841615,-3240.0,0.00014495,2]
[401086824,1767913841626,-6676.8052547,0.00014723,2]
[401086825,1767913841636,-226.98,0.00014761,2]
[401086828,1767913841648,-500.0,0.00014763,2]
[401086830,1767913841658,-500.0,0.00014763,2]
[401086832,1767913841668,-500.0,0.00014763,2]
[401086834,1767913841679,-500.0,0.00014763,2]
[401086836,1767913841689,-453.03832283,0.00014763,2]
[401086838,1767913841699,-500.0,0.00014763,2]
[401086840,1767913841711,-500.0,0.00014763,2]
[401086842,1767913841723,-500.0,0.00014763,2]
[401086843,1767913841732,-500.0,0.00014763,2]
[401086846,1767913841741,-165.70843486,0.00014763,2]
[401086848,1767913841751,-500.0,0.00014763,2]
[401086850,1767913841762,-500.0,0.00014763,2]
[401086852,1767913841771,-151.0,0.00014791,2]
[401086854,1767913841780,-151.0,0.00014791,2]
[401086856,1767913841790,-9301.34223172,0.00014819,2]
[401086858,1767913841800,-8810.0767951,0.00014819,2]
[401086859,1767913841809,-247.17817809,0.000149,2]
[401086861,1767913841819,-29097.4613506,0.00015087,2]
[401086863,1767913841828,-324.9765641,0.00015278,2]
[401086865,1767913841838,-226.98,0.00015464,2]
[401086868,1767913841848,-158.69212054,0.0001558,2]
[401086870,1767913841857,-9301.34223172,0.00015589,2]
[401086872,1767913841867,-8810.0767951,0.00015589,2]
[401086910,1767913842202,-1000.0,0.00015604,2]
[401086912,1767913842212,-4609.0,0.00015604,2]
[401086914,1767913842221,-1252.0,0.00015703,2]
[401086916,1767913842231,-1000.0,0.00015918,2]
[401086918,1767913842239,-9999.99,0.00016116,2]
[401086920,1767913842250,-226.98,0.00016167,2]
[401086922,1767913842259,-9301.34223172,0.00016359,2]
[401086923,1767913842268,-8810.0767951,0.00016359,2]
[401086926,1767913842277,-150.0,0.00016383,2]
[401086928,1767913842287,-150.0,0.00016383,2]
[401086930,1767913842296,-150.0,0.00016383,2]
[401086932,1767913842305,-500.0,0.00016383,2]
[401086933,1767913842315,-500.0,0.00016383,2]
[401086935,1767913842324,-500.0,0.00016383,2]
[401086938,1767913842334,-150.0,0.00016383,2]
[401086940,1767913842343,-150.0,0.00016383,2]
[401086941,1767913842352,-972.0,0.00016383,2]
[401086944,1767913842362,-250.0,0.00016383,2]
[401086946,1767913842371,-161.41,0.00016401,2]
[401086948,1767913842380,-500.0,0.00016437,2]
[401086950,1767913842390,-500.0,0.00016437,2]
[401086951,1767913842399,-500.0,0.00016437,2]
[401086953,1767913842408,-190.19225777,0.00016438,2]
[401086955,1767913842418,-500.0,0.00016438,2]
[401086957,1767913842427,-500.0,0.00016438,2]
[401086959,1767913842436,-500.0,0.00016438,2]
[401086961,1767913842446,-972.0,0.00016438,2]
[401086964,1767913842456,-2195.8,0.00016438,2]
[401086966,1767913842467,-500.0,0.00016493,2]
[401086968,1767913842477,-500.0,0.00016493,2]
[401086970,1767913842487,-500.0,0.00016493,2]
[401086972,1767913842496,-972.0,0.00016493,2]
[401086973,1767913842505,-1000.0,0.00016515,2]
[401086975,1767913842514,-500.0,0.00016547,2]
[401086977,1767913842523,-500.0,0.00016547,2]
[401086981,1767913842533,-500.0,0.00016547,2]
[401086983,1767913842542,-972.0,0.00016547,2]
[401086984,1767913842554,-157.72323008,0.00016548,2]
[401086987,1767913842563,-397.40808875,0.00016551,2]
[401086988,1767913842572,-500.0,0.00016551,2]
[401086991,1767913842582,-502.7457157,0.00016551,2]
[401086993,1767913842592,-500.0,0.00016551,2]
[401086995,1767913842601,-500.0,0.00016551,2]
[401086997,1767913842617,-500.0,0.00016551,2]
[401087000,1767913842626,-500.0,0.00016551,2]
[401087003,1767913842635,-500.0,0.00016551,2]
[401087006,1767913842644,-500.0,0.00016551,2]
[401087008,1767913842654,-500.0,0.00016551,2]
[401087010,1767913842663,-500.0,0.00016551,2]
[401087012,1767913842672,-483.79003433,0.00016551,2]
[401087014,1767913842682,-150.0,0.00016551,2]
[401087016,1767913842692,-500.0,0.00016551,2]
[401087018,1767913842701,-512.38385976,0.00016551,2]
[401087020,1767913842711,-500.0,0.00016551,2]
[401087022,1767913842720,-93820.3200108,0.00016552,2]
[401087025,1767913842733,-500.0,0.00016602,2]
[401087027,1767913842742,-500.0,0.00016602,2]
[401087029,1767913842751,-500.0,0.00016602,2]
[401087031,1767913842761,-972.0,0.00016602,2]
[401087033,1767913842770,-500.0,0.00016657,2]
[401087035,1767913842779,-500.0,0.00016657,2]
[401087037,1767913842788,-500.0,0.00016657,2]
[401087039,1767913842798,-972.0,0.00016657,2]
[401087041,1767913842807,-585.48487047,0.00016712,2]
[401087043,1767913842817,-189.97512683,0.00016712,2]
[401087045,1767913842826,-500.0,0.00016712,2]
[401087047,1767913842835,-972.0,0.00016712,2]
[401087049,1767913842845,-2195.8,0.00016712,2]
[401087051,1767913842855,-500.0,0.00016767,2]
[401087053,1767913842864,-972.0,0.00016767,2]
[401087055,1767913842873,-208.22403406,0.00016821,2]
[401087057,1767913842883,-972.0,0.00016821,2]
[401087059,1767913842892,-469.50438451,0.0001685,2]
[401087061,1767913842903,-226.98,0.0001687,2]
[401087063,1767913842911,-972.0,0.00016876,2]
[401087065,1767913842920,-972.0,0.00016931,2]
[401087067,1767913842930,-2860.0,0.00016937,2]
[401087069,1767913842939,-200.0,0.00016983,2]
[401087071,1767913842952,-972.0,0.00016986,2]
[401087073,1767913842961,-2195.8,0.00016986,2]
[401087075,1767913842971,-50623.16,0.00016986,2]
[401087077,1767913842981,-3032.44949746,0.00017,2]
[401087079,1767913842991,-2860.0,0.00017017,2]
[401087081,1767913843000,-1000.0,0.00017022,2]
[401087083,1767913843009,-235.0,0.00017034,2]
[401087085,1767913843020,-972.0,0.00017041,2]
[401087087,1767913843029,-2860.0,0.00017078,2]
[401087089,1767913843038,-972.0,0.00017095,2]
[401087091,1767913843047,-620.0,0.00017099,2]
[401087093,1767913843057,-166.77833559,0.00017099,2]
[401087095,1767913843066,-578.20924308,0.00017099,2]
[401087097,1767913843075,-359.76179104,0.00017099,2]
[401087099,1767913843084,-500.0,0.00017099,2]
[401087101,1767913843093,-529.58639713,0.00017099,2]
[401087103,1767913843103,-1500.0,0.00017099,2]
[401087105,1767913843112,-1500.0,0.00017099,2]
[401087108,1767913843122,-1500.0,0.00017099,2]
[401087109,1767913843131,-1500.0,0.00017099,2]
[401087112,1767913843140,-1500.0,0.00017099,2]
[401087113,1767913843149,-1500.0,0.00017099,2]
[401087116,1767913843160,-1500.0,0.00017099,2]
[401087117,1767913843169,-322.6107,0.00017099,2]
[401087120,1767913843179,-1500.0,0.00017099,2]
[401087121,1767913843187,-1500.0,0.00017099,2]
[401087124,1767913843197,-1500.0,0.00017099,2]
[401087125,1767913843206,-496.48372017,0.00017099,2]
[401087127,1767913843215,-500.0,0.00017099,2]
[401087130,1767913843226,-500.0,0.00017099,2]
[401087132,1767913843235,-500.0,0.00017099,2]
[401087134,1767913843244,-500.0,0.00017099,2]
[401087136,1767913843253,-500.0,0.00017099,2]
[401087138,1767913843262,-500.0,0.00017099,2]
[401087140,1767913843271,-500.0,0.00017099,2]
[401087142,1767913843280,-500.0,0.00017099,2]
[401087144,1767913843289,-500.0,0.00017099,2]
[401087146,1767913843298,-500.0,0.00017099,2]
[401087148,1767913843307,-500.0,0.00017099,2]
[401087150,1767913843316,-553.64373807,0.00017099,2]
[401087152,1767913843324,-500.0,0.00017099,2]
[401087154,1767913843333,-500.0,0.00017099,2]
[401087156,1767913843343,-500.0,0.00017099,2]
[401087158,1767913843351,-2000.0,0.00017099,2]
[401087160,1767913843360,-500.0,0.00017099,2]
[401087162,1767913843369,-2000.0,0.00017099,2]
[401087164,1767913843378,-250.0,0.00017099,2]
[401087166,1767913843387,-2000.0,0.00017099,2]
[401087168,1767913843396,-2000.0,0.00017099,2]
[401087170,1767913843405,-2000.0,0.00017099,2]
[401087171,1767913843414,-2000.0,0.00017099,2]
[401087172,1767913843423,-2000.0,0.00017099,2]
[401087173,1767913843433,-2000.0,0.00017099,2]
[401087174,1767913843442,-1000.0,0.00017099,2]
[401087175,1767913843451,-151.0,0.00017099,2]
[401087176,1767913843459,-250.0,0.00017099,2]
[401087177,1767913843468,-250.0,0.00017099,2]
[401087178,1767913843477,-500.0,0.00017099,2]
[401087179,1767913843486,-250.0,0.00017099,2]
[401087180,1767913843495,-500.0,0.00017099,2]
[401087181,1767913843504,-250.0,0.00017099,2]
[401087182,1767913843512,-695.39793187,0.00017099,2]
[401087183,1767913843521,-250.0,0.00017099,2]
[401087184,1767913843530,-500.0,0.00017099,2]
[401087185,1767913843539,-250.0,0.00017099,2]
[401087187,1767913843551,-500.0,0.00017099,2]
[401087189,1767913843560,-250.0,0.00017099,2]
[401087191,1767913843569,-500.0,0.00017099,2]
[401087193,1767913843579,-250.0,0.00017099,2]
[401087195,1767913843587,-500.0,0.00017099,2]
[401087197,1767913843596,-275.30162004,0.00017099,2]
[401087199,1767913843605,-500.0,0.00017099,2]
[401087201,1767913843614,-500.0,0.00017099,2]
[401087203,1767913843625,-500.0,0.00017099,2]
[401087205,1767913843634,-500.0,0.00017099,2]
[401087207,1767913843644,-500.0,0.00017099,2]
[401087209,1767913843654,-500.0,0.00017099,2]
[401087212,1767913843663,-1000.0,0.000171,2]
[401087215,1767913843672,-1000.0,0.00017112,2]
[401087217,1767913843683,-2860.0,0.00017125,2]
[401087220,1767913843692,-9301.34223172,0.0001713,2]
[401087222,1767913843701,-8810.0767951,0.0001713,2]
[401087225,1767913843711,-972.0,0.0001715,2]
[401087227,1767913843720,-6453.0,0.00017164,2]
[401087229,1767913843730,-500.0,0.00017182,2]
[401087231,1767913843739,-500.0,0.00017182,2]
[401087233,1767913843749,-500.0,0.00017182,2]
[401087236,1767913843758,-274.0,0.00017188,2]
[401087237,1767913843767,-2129.0,0.00017188,2]
[401087240,1767913843776,-972.0,0.00017205,2]
[401087243,1767913843785,-260.55,0.00017255,2]
[401087245,1767913843794,-972.0,0.0001726,2]
[401087247,1767913843803,-2195.8,0.0001726,2]
[401087250,1767913843812,-2436.0,0.00017266,2]
[401087252,1767913843822,-4819.0,0.00017266,2]
[401087253,1767913843831,-6552.0,0.00017266,2]
[401087255,1767913843841,-157.72323008,0.000173,2]